bitfinex/quotes_ETHUSD_20250403
["timestamp","ask_amount","ask_price","bid_price","bid_amount"]
[1743642128328,4.39757,1819.2,1818.9,6.10293766]
[1743642128329,4.39757,1819.2,1818.9,7.40876555]
[1743642129194,4.39732,1819.3,1818.9,7.40876555]
[1743642129593,4.39679,1819.6,1819.1,4.39777]
[1743642129797,4.68201079,1819.8,1819.1,4.39777]
[1743642129798,4.39638,1819.7,1819.2,15.99388335]
[1743642129997,4.39638,1819.7,1819.2,15.93892466]
[1743642130850,4.80945884,1820.0,1819.4,4.39691]
[1743642130851,4.39574,1820.0,1819.4,4.39691]
[1743642131049,4.39532,1820.2,1819.6,5.22068]
[1743642131348,8.79145,1820.0,1819.7,6.276068]
[1743642131550,4.39599,1819.9,1819.7,5.754]
[1743642131848,4.3957,1820.0,1819.7,5.754]
[1743642132016,7.39534,1820.2,1819.7,5.80894657]
[1743642132221,4.39534,1820.2,1819.8,5.19744]
[1743642132423,4.39534,1820.2,1819.9,0.519744]
[1743642132842,4.3949,1820.3,1819.9,0.519744]
[1743642133068,4.3949,1820.3,1819.9,4.915454]
[1743642133219,4.39441,1820.5,1820.1,0.76]
[1743642133419,8.78902,1820.5,1820.2,5.754]
[1743642133819,4.39463,1820.4,1820.2,5.754]
[1743642134315,8.78902,1820.5,1820.2,5.754]
[1743642134520,4.3944,1820.5,1820.3,0.05493215]
[1743642134767,4.3942,1820.6,1820.2,5.754]
[1743642135057,4.45539932,1820.9,1820.4,5.18761]
[1743642135058,4.3937,1820.8,1820.4,5.18761]
[1743642136142,4.3937,1820.8,1820.5,5.34773766]
[1743642136349,4.3937,1820.8,1820.6,5.753]
[1743642136918,4.39391,1820.7,1820.6,5.753]
[1743642137148,4.39415,1820.6,1820.5,5.34773766]
[1743642137324,4.39391,1820.7,1820.5,11.09973766]
[1743642137718,3.0,1820.8,1820.5,5.752]
[1743642137719,7.39368,1820.8,1820.5,5.752]
[1743642137941,7.39377,1820.8,1820.5,5.752]
[1743642138453,4.39415,1820.6,1820.5,5.752]
[1743642139253,5.272962,1820.6,1820.5,5.752]
[1743642139456,4.39415,1820.6,1820.5,5.752]
[1743642140058,3.0,1820.8,1820.5,5.752]
[1743642140253,7.39377,1820.8,1820.6,0.8324]
[1743642141041,4.39377,1820.8,1820.6,0.8324]
[1743642141559,4.39377,1820.8,1820.6,0.88732081]
[1743642141755,0.1,1820.9,1820.6,5.28135081]
[1743642141955,0.1,1820.9,1820.8,4.39367]
[1743642142122,0.1,1820.9,1820.8,5.20387]
[1743642142324,0.1,1820.9,1820.8,5.25877603]
[1743642143235,0.1,1820.9,1820.8,5.20387]
[1743642143836,0.1,1820.9,1820.8,10.55160766]
[1743642144030,0.1,1820.9,1820.8,12.13946405]
[1743642144443,0.1,1821.9,1821.4,0.7841]
[1743642144762,0.1,1821.9,1821.5,15.54458398]
[1743642145065,0.1,1821.9,1821.7,0.7841]
[1743642145236,0.1,1821.9,1821.8,0.05488481]
[1743642145433,0.1,1821.9,1821.8,9.79388247]
[1743642145645,0.1,1821.9,1821.8,10.85168072]
[1743642145822,0.1,1821.9,1821.8,10.79679591]
[1743642146629,0.1,1821.9,1821.8,10.85167161]
[1743642146829,0.1,1821.9,1821.8,10.79679591]
[1743642147252,0.1,1821.9,1821.8,6.40553591]
[1743642147531,0.1,1821.9,1821.8,16.54579591]
[1743642147732,0.1,1821.9,1821.8,17.32159591]
[1743642147952,0.1,1821.9,1821.8,20.32159591]
[1743642151265,0.1,1821.9,1821.8,14.57259591]
[1743642151452,0.1,1821.9,1821.8,20.31859591]
[1743642151654,0.1,1821.9,1821.8,12.92733591]
[1743642152146,0.1,1821.9,1821.8,17.31859591]
[1743642156150,0.1,1821.9,1821.8,20.31859591]
[1743642156875,0.1,1821.9,1821.8,17.31859591]
[1743642159144,0.1,1821.9,1821.8,20.31859591]
[1743642160275,0.1,1821.9,1821.8,20.49005524]
[1743642160574,0.1,1822.9,1822.6,4.38921]
[1743642160917,0.1,1822.9,1822.7,5.79685493]
[1743642161278,0.1,1822.9,1822.7,10.18577493]
[1743642161685,0.1,1822.9,1822.8,9.73658766]
[1743642163216,0.1,1822.9,1822.8,9.7914323]
[1743642163390,0.1,1822.9,1822.8,12.47893489]
[1743642163588,0.1,1822.9,1822.8,15.88961526]
[1743642164815,0.1,1822.9,1822.8,7.33998489]
[1743642165023,0.1,1822.9,1822.8,7.39483392]
[1743642165187,0.1,1822.9,1822.8,11.72883489]
[1743642165898,0.1,1822.9,1822.8,5.34773766]
[1743642166106,0.1,1822.9,1822.8,5.739]
[1743642166333,0.1,1822.9,1822.8,15.47558766]
[1743642166508,0.1,1822.9,1822.8,18.47558766]
[1743642167028,0.1,1822.9,1822.8,11.08673766]
[1743642167219,0.1,1822.9,1822.8,5.34773766]
[1743642167519,0.1,1822.9,1822.8,11.08673766]
[1743642168335,4.48861,1822.9,1822.8,5.739]
[1743642169194,0.1,1822.9,1822.8,5.739]
[1743642169392,4.48861,1822.9,1822.8,5.739]
[1743642169633,0.1,1822.9,1822.8,5.739]
[1743642169832,4.48861,1822.9,1822.5,46.49873766]
[1743642170137,4.3891,1822.7,1822.5,46.49873766]
[1743642170321,4.3891,1822.7,1822.6,5.738]
[1743642170523,4.38906,1822.8,1822.5,46.49873766]
[1743642170725,4.38906,1822.8,1822.6,5.79286096]
[1743642170958,0.1,1822.9,1822.6,5.79286096]
[1743642171352,0.1,1822.9,1822.6,10.18219096]
[1743642171658,0.1,1822.9,1822.6,15.47506766]
[1743642171828,0.1,1822.9,1822.6,11.08573766]
[1743642172026,4.48879,1822.9,1822.7,5.737]
[1743642172223,4.38886,1822.8,1822.7,5.737]
[1743642175175,5.19489,1822.7,1822.6,5.34773766]
[1743642175477,5.19489,1822.7,1822.1,5.34773766]
[1743642175478,4.39017,1822.3,1822.1,5.34773766]
[1743642175674,5.19597,1822.3,1822.2,5.737]
[1743642176064,5.19597,1822.3,1822.0,5.34773766]
[1743642176271,5.19597,1822.3,1821.8,46.59003825]
[1743642176272,4.39066,1822.1,1821.8,42.19879825]
[1743642176579,4.39077,1822.0,1821.9,5.737]
[1743642176879,4.39102,1821.9,1821.8,41.141]
[1743642177178,5.16954,1821.8,1821.4,5.34773766]
[1743642177367,9.561,1821.8,1821.5,6.27177377]
[1743642177979,5.16954,1821.8,1821.5,6.27177377]
[1743642178140,5.16954,1821.8,1821.6,0.34308292]
[1743642179190,5.16954,1821.8,1821.6,0.17154141]
[1743642179793,0.7781,1821.8,1821.6,0.17154141]
[1743642179992,0.7781,1821.8,1821.6,0.22643219]
[1743642180193,0.7781,1821.8,1821.6,1.31543679]
[1743642181091,5.16946,1821.8,1821.6,0.22643219]
[1743642181393,4.3915,1821.7,1821.6,5.90854141]
[1743642182301,8.2248,1821.7,1821.6,0.17154141]
[1743642182589,12.29443229,1821.7,1821.6,0.17154141]
[1743642182803,7.39246,1821.3,1821.2,0.17157866]
[1743642182965,13.55719029,1821.3,1821.2,0.17157866]
[1743642183593,13.97165681,1821.3,1821.2,0.17157866]
[1743642183960,4.39355,1820.9,1820.7,5.737]
[1743642184390,8.7872,1820.9,1820.7,5.737]
[1743642184691,5.21877,1820.8,1820.7,5.737]
[1743642185193,5.21877,1820.8,1820.1,0.1]
[1743642185194,4.786332,1820.8,1820.1,0.1]
[1743642185395,4.3947,1820.4,1820.2,5.738]
[1743642185687,4.3947,1820.4,1820.3,5.738]
[1743642185688,8.7895,1820.4,1820.3,5.738]
[1743642185893,4.3947,1820.4,1820.3,5.738]
[1743642187413,5.2221,1820.4,1820.3,5.738]
[1743642189930,7.39369,1820.8,1820.3,10.70658]
[1743642190136,7.39369,1820.8,1820.3,16.05431766]
[1743642190437,3.0,1820.8,1820.4,4.44936706]
[1743642190635,0.7848,1820.9,1820.5,4.39428]
[1743642190834,0.7842,1821.1,1820.7,4.39381]
[1743642191066,4.39258,1821.3,1820.8,10.573041]
[1743642191211,4.39275,1821.2,1820.8,6.179381]
[1743642191851,4.39298,1821.1,1820.8,6.179381]
[1743642192046,4.39333,1821.0,1820.8,5.74]
[1743642192262,5.15233,1821.0,1820.8,5.74]
[1743642192416,4.39353,1820.9,1820.7,5.34773766]
[1743642192615,4.39353,1820.9,1820.8,5.74]
[1743642192815,5.15233,1821.0,1820.8,5.74]
[1743642193016,9.54576,1821.0,1820.8,5.74]
[1743642193327,5.15233,1821.0,1820.8,5.74]
[1743642193529,9.54576,1821.0,1820.8,5.74]
[1743642193737,5.15233,1821.0,1820.8,5.74]
[1743642194241,0.759,1821.0,1820.8,5.74]
[1743642194626,4.39295,1821.1,1820.8,6.314]
[1743642195762,8.17761,1821.2,1820.8,16.05535766]
[1743642195958,4.39263,1821.3,1820.8,20.44885766]
[1743642196158,4.677846,1821.5,1821.0,4.39296]
[1743642196472,0.285726,1821.5,1821.2,5.161]
[1743642196774,4.39151,1821.7,1821.3,10.70231898]
[1743642197061,4.39186,1821.6,1821.3,6.2551]
[1743642197280,4.39151,1821.7,1821.3,10.70241895]
[1743642197963,8.78264,1821.8,1821.3,15.09471895]
[1743642198170,8.78264,1821.8,1821.3,15.03982]
[1743642198469,4.39154,1821.7,1821.4,1.503982]
[1743642200756,4.39126,1821.8,1821.4,1.503982]
[1743642201366,8.78272,1821.8,1821.4,1.503982]
[1743642202195,0.8291,1821.9,1821.5,0.05489895]
[1743642202358,0.8291,1821.9,1821.6,4.39164]
[1743642202694,4.39084,1822.0,1821.7,5.738]
[1743642203958,9.53128,1822.1,1821.7,5.738]
[1743642204288,5.14064,1822.1,1821.7,5.738]
[1743642204814,4.39126,1821.8,1821.4,5.34773766]
[1743642204990,4.39154,1821.7,1821.5,5.737]
[1743642205162,4.39154,1821.7,1821.6,5.737]
[1743642205163,5.21494,1821.7,1821.6,5.737]
[1743642207475,4.39134,1821.8,1821.6,5.737]
[1743642207678,4.39082,1822.0,1821.6,6.3107]
[1743642207886,4.39082,1822.0,1821.6,15.88645]
[1743642208082,4.39082,1822.0,1821.6,11.49482]
[1743642208414,8.78179,1822.0,1821.6,11.49482]
[1743642208582,4.39082,1822.0,1821.6,10.92112]
[1743642209909,8.78128,1822.1,1821.7,4.3915]
[1743642210108,4.39081,1822.0,1821.6,10.92107]
[1743642211125,8.78179,1822.0,1821.6,10.92107]
[1743642211283,5.185,1821.7,1821.5,5.34773766]
[1743642211483,0.5185,1821.6,1821.5,5.735]
[1743642211697,4.39174,1821.6,1821.5,5.735]
[1743642213230,9.25463229,1821.7,1821.2,5.34773766]
[1743642213231,4.39246,1821.3,1821.2,5.34773766]
[1743642213411,5.18836,1821.3,1821.2,11.08273766]
[1743642213991,4.39246,1821.3,1821.2,11.08273766]
[1743642215035,7.39246,1821.3,1821.2,5.735]
[1743642215226,8.97789323,1821.3,1821.2,5.735]
[1743642216315,4.39308,1821.1,1820.8,0.7703]
[1743642216548,4.39333,1821.0,1820.9,5.734]
[1743642217118,4.39274,1821.2,1820.9,5.734]
[1743642217317,4.39274,1821.2,1821.0,0.5734]
[1743642218258,8.78566,1821.2,1821.0,0.5734]
[1743642218427,4.39274,1821.2,1820.9,5.734]
[1743642218633,8.78566,1821.2,1820.9,5.78891098]
[1743642218834,4.39297,1821.1,1820.9,5.734]
[1743642219268,3.0,1821.3,1820.7,5.34773766]
[1743642219425,4.39343,1820.9,1820.8,5.735]
[1743642221374,4.39343,1820.9,1820.6,0.7549]
[1743642221375,0.87867,1820.9,1820.5,41.168]
[1743642221528,4.39439,1820.5,1820.4,5.735]
[1743642221865,4.39512,1820.2,1820.1,0.1]
[1743642222073,4.39512,1820.2,1820.1,5.835]
[1743642223354,4.39458,1820.5,1820.1,5.835]
[1743642223530,4.39458,1820.5,1820.2,0.81083722]
[1743642223754,4.39458,1820.5,1820.2,1.47542094]
[1743642223955,4.39469,1820.4,1820.2,1.42048372]
[1743642224170,4.39469,1820.4,1820.2,1.47541677]
[1743642224695,4.39458,1820.5,1820.2,1.47541677]
[1743642224861,5.14673,1820.7,1820.2,5.87040677]
[1743642225067,4.3942,1820.6,1820.3,0.58704068]
[1743642225392,4.39413,1820.7,1820.3,0.58704068]
[1743642226182,8.78826,1820.7,1820.3,0.58704068]
[1743642228192,4.39422,1820.6,1820.2,1.42048372]
[1743642228389,8.7886,1820.6,1820.2,1.42048372]
[1743642228690,4.39422,1820.6,1820.2,1.42048372]
[1743642229302,4.39371,1820.8,1820.3,0.05492855]
[1743642229457,4.39355,1820.9,1820.4,8.78903]
[1743642229652,4.06963229,1820.8,1820.5,5.735]
[1743642230000,4.3945,1820.5,1820.2,6.10363766]
[1743642230185,4.39416,1820.6,1820.3,5.735]
[1743642230383,4.39392,1820.7,1820.3,5.78993009]
[1743642230561,4.39392,1820.7,1820.3,10.18471009]
[1743642230760,4.39392,1820.7,1820.4,1.01847101]
[1743642231178,4.39392,1820.7,1820.4,1.07339716]
[1743642231899,4.39415,1820.6,1820.4,1.01847101]
[1743642232196,4.39439,1820.5,1820.3,5.735]
[1743642232899,4.39463,1820.4,1820.3,5.735]
[1743642234090,4.3942,1820.6,1820.3,5.735]
[1743642235102,4.39409,1820.7,1820.4,0.05493187]
[1743642235266,4.39359,1820.9,1820.5,5.22423]
[1743642235461,4.39369,1820.8,1820.5,6.17773766]
[1743642236185,4.39391,1820.7,1820.5,6.17773766]
[1743642236522,4.39415,1820.6,1820.5,5.34773766]
[1743642237134,8.350306,1820.6,1820.5,5.734]
[1743642237297,4.39498,1820.3,1820.1,0.1]
[1743642237501,4.39498,1820.3,1820.2,5.734]
[1743642238016,4.39467,1820.4,1820.2,5.734]
[1743642238631,4.39446,1820.5,1820.2,5.734]
[1743642238927,4.39446,1820.5,1820.3,0.5734]
[1743642239329,4.39417,1820.6,1820.3,0.5734]
[1743642239626,4.39391,1820.7,1820.3,0.5734]
[1743642239833,4.39391,1820.7,1820.4,0.7952]
[1743642240002,8.78804,1820.7,1820.4,6.14293766]
[1743642240323,8.78804,1820.7,1820.4,7.25404943]
[1743642240628,8.78803,1820.7,1820.4,7.25404943]
[1743642240991,4.39425,1820.6,1820.4,7.25404943]
[1743642241200,8.78863,1820.6,1820.4,6.45884943]
[1743642241491,4.39439,1820.5,1820.4,5.34773766]
[1743642241914,4.39425,1820.6,1820.4,5.34773766]
[1743642242216,8.78863,1820.6,1820.4,5.34773766]
[1743642242521,4.39439,1820.5,1820.4,5.34773766]
[1743642243889,4.39425,1820.6,1820.4,5.34773766]
[1743642244096,4.39391,1820.7,1820.4,0.59211377]
[1743642244529,8.78802,1820.7,1820.4,0.59211377]
[1743642244697,4.39416,1820.6,1820.4,0.59211377]
[1743642245026,4.39439,1820.5,1820.3,5.92113766]
[1743642246904,4.39416,1820.6,1820.3,5.92113766]
[1743642247823,4.39394,1820.7,1820.3,10.54257589]
[1743642249235,4.39332,1821.0,1820.6,4.3941]
[1743642249533,4.39332,1821.0,1820.7,5.733]
[1743642249736,4.39332,1821.0,1820.7,6.7512021]
[1743642250699,4.39296,1821.1,1820.7,11.37159464]
[1743642250907,7.39253,1821.3,1820.7,12.27059124]
[1743642251109,8.24779507,1821.4,1821.0,4.39311]
[1743642251327,4.67806568,1821.4,1821.1,5.732]
[1743642251528,8.78475,1821.4,1821.1,5.732]
[1743642252021,4.3927,1821.2,1821.1,5.732]
[1743642252551,5.1714,1821.2,1821.1,5.732]
[1743642252939,4.39319,1821.0,1820.9,0.1716575]
[1743642253122,11.84154139,1821.0,1820.9,0.1716575]
[1743642253318,4.39343,1820.9,1820.8,5.90261395]
[1743642253831,7.39319,1821.0,1820.8,5.90261395]
[1743642254031,11.78659,1821.0,1820.8,5.731]
[1743642254636,4.39274,1821.2,1820.8,10.12462]
[1743642254833,4.39274,1821.2,1820.9,1.012462]
[1743642255033,4.39258,1821.3,1820.9,1.012462]
[1743642255233,4.39258,1821.3,1820.9,1.814962]
[1743642255560,8.7852,1821.3,1820.9,6.208312]
[1743642255723,4.39285,1821.2,1820.9,1.814962]
[1743642256253,4.39258,1821.3,1821.0,0.05490905]
[1743642256432,5.21973,1821.4,1820.9,6.208262]
[1743642256433,4.39223,1821.4,1820.9,6.208262]
[1743642256633,4.39223,1821.4,1821.0,5.0139862]
[1743642257551,8.78465,1821.4,1821.0,5.0139862]
[1743642257730,8.78465,1821.4,1821.0,0.6208262]
[1743642258357,4.39249,1821.3,1821.0,0.6208262]
[1743642258763,4.39199,1821.5,1821.1,4.44780607]
[1743642258939,4.39195,1821.6,1821.3,0.7755]
[1743642259341,4.39195,1821.6,1821.3,0.83040005]
[1743642259542,4.39195,1821.6,1821.3,0.7755]
[1743642259933,4.39207,1821.5,1821.2,11.52251827]
[1743642260346,4.39195,1821.6,1821.3,0.0549001]
[1743642260552,4.39195,1821.6,1821.3,1.21264194]
[1743642261046,8.78392,1821.6,1821.3,1.15774184]
[1743642261574,4.39222,1821.4,1821.2,11.07773766]
[1743642261746,4.39222,1821.4,1821.2,5.34773766]
[1743642261747,4.39246,1821.3,1821.2,5.34773766]
[1743642262073,4.39246,1821.3,1821.2,11.07673766]
[1743642262373,7.39246,1821.3,1821.2,11.07673766]
[1743642262579,8.650098,1821.3,1821.2,11.07673766]
[1743642262938,7.39246,1821.3,1821.2,11.07673766]
[1743642263773,4.3927,1821.2,1821.1,5.728]
[1743642263942,4.39324,1821.0,1820.8,41.182]
[1743642264143,4.39324,1821.0,1820.9,5.728]
[1743642264347,4.39295,1821.1,1820.9,5.728]
[1743642264545,4.39275,1821.2,1821.0,0.5728]
[1743642264772,8.78565,1821.2,1821.0,0.5728]
[1743642265877,4.39247,1821.3,1821.0,0.5728]
[1743642266077,4.39228,1821.4,1821.1,0.05490785]
[1743642266277,4.39271,1821.2,1821.0,1.324]
[1743642266468,4.39271,1821.2,1821.0,1.49558293]
[1743642267147,4.39271,1821.2,1821.0,1.55049189]
[1743642267767,4.39271,1821.2,1821.0,1.37890896]
[1743642268161,4.39247,1821.3,1821.0,1.37890896]
[1743642268361,4.39222,1821.4,1821.0,6.72664662]
[1743642268680,4.39222,1821.4,1821.1,0.67266466]
[1743642268849,4.39222,1821.4,1821.2,0.05490305]
[1743642269050,4.39222,1821.4,1821.3,5.727]
[1743642269648,4.39179,1821.6,1821.3,6.5367]
[1743642269873,4.39179,1821.6,1821.4,0.0548971]
[1743642270073,4.39174,1821.7,1821.4,0.71405681]
[1743642270483,4.39174,1821.7,1821.4,0.65915971]
[1743642271092,4.39174,1821.7,1821.4,0.71405502]
[1743642271454,4.39171,1821.7,1821.4,0.71405502]
[1743642271788,4.39187,1821.6,1821.4,0.65915971]
[1743642271948,4.39198,1821.5,1821.4,0.65915971]
[1743642272564,4.39187,1821.6,1821.4,0.65915971]
[1743642273486,8.78432,1821.5,1821.3,6.5367]
[1743642274084,8.78432,1821.5,1821.3,0.8097]
[1743642274085,4.39222,1821.4,1821.3,0.8097]
[1743642274287,4.39246,1821.3,1821.2,5.34773766]
[1743642274491,4.39295,1821.1,1820.9,5.34773766]
[1743642274667,4.39295,1821.1,1821.0,5.726]
[1743642275095,4.39275,1821.2,1821.0,5.726]
[1743642275566,4.39211,1821.5,1821.1,5.19932]
[1743642275769,4.39211,1821.5,1821.1,10.54705766]
[1743642275957,4.39174,1821.6,1821.2,5.50220738]
[1743642276159,4.39174,1821.6,1821.2,5.44730577]
[1743642276352,4.392,1821.5,1821.2,1.05470577]
[1743642276965,4.39174,1821.6,1821.2,5.44738577]
[1743642277770,4.39174,1821.6,1821.2,5.61896234]
[1743642277970,4.39174,1821.6,1821.3,0.56189623]
[1743642278172,4.39174,1821.6,1821.4,5.725]
[1743642279499,4.39198,1821.5,1821.4,5.725]
[1743642281400,4.39222,1821.4,1821.3,5.34773766]
[1743642281606,4.39222,1821.4,1821.3,11.07173766]
[1743642281793,5.19802,1821.4,1821.3,11.07173766]
[1743642282303,9.72281375,1821.4,1821.3,11.07173766]
[1743642282478,6.15702,1821.4,1821.3,11.07173766]
[1743642283480,6.15702,1821.4,1821.3,5.724]
[1743642285204,9.15702,1821.4,1821.3,5.724]
[1743642285394,4.39294,1821.1,1821.0,0.34318532]
[1743642285592,4.39294,1821.1,1821.0,5.89558817]
[1743642286819,4.39319,1821.0,1820.9,0.17158817]
[1743642287021,4.39319,1821.0,1820.9,5.89458817]
[1743642291134,4.39319,1821.0,1820.9,0.17158817]
[1743642291339,4.39319,1821.0,1820.9,5.89458817]
[1743642291646,5.20439,1821.0,1820.9,0.17158817]
[1743642291822,6.52070238,1821.0,1820.9,5.89458817]
[1743642292145,6.52070238,1821.0,1820.9,0.17158817]
[1743642292322,9.52070238,1821.0,1820.9,0.17158817]
[1743642293214,7.39343,1820.9,1820.8,5.723]
[1743642293416,10.95922375,1820.9,1820.8,5.723]
[1743642295221,12.70721636,1820.9,1820.8,5.723]
[1743642296443,10.95922375,1820.9,1820.8,5.723]
[1743642300562,10.95922375,1820.9,1820.4,41.174]
[1743642300563,4.39439,1820.5,1820.4,41.174]
[1743642300773,4.39439,1820.5,1820.4,46.896]
[1743642301064,4.39439,1820.5,1820.4,5.722]
[1743642301238,4.39387,1820.8,1820.4,5.722]
[1743642301437,4.39414,1820.7,1820.5,0.5722]
[1743642301664,4.39415,1820.6,1820.5,0.5722]
[1743642302168,4.39209375,1820.6,1820.1,1.02406202]
[1743642302367,4.39512,1820.2,1820.1,1.02406202]
[1743642302537,7.96091375,1820.2,1820.1,0.27166202]
[1743642302741,11.78721375,1820.2,1820.1,0.27166202]
[1743642303058,13.40543612,1820.2,1820.1,0.1]
[1743642304633,7.39681,1819.5,1819.4,0.17173078]
[1743642304831,10.96260375,1819.5,1819.4,0.17173078]
[1743642305338,11.75360375,1819.5,1819.4,0.17173078]
[1743642305665,7.39705,1819.4,1819.3,5.723]
[1743642305969,10.96284375,1819.4,1819.3,5.723]
[1743642306265,7.96284375,1819.4,1819.3,5.723]
[1743642308966,4.39753,1819.2,1819.1,0.1]
[1743642309128,7.96332375,1819.2,1819.1,0.1]
[1743642309328,9.97199212,1819.2,1819.1,0.1]
[1743642310278,12.97199212,1819.2,1819.1,0.1]
[1743642310638,12.19939212,1819.2,1819.1,0.1]
[1743642311037,13.01189212,1819.2,1819.1,0.1]
[1743642311260,5.2117,1818.6,1818.1,5.27056]
[1743642311487,4.3995,1818.4,1818.2,5.724]
[1743642312507,7.96550375,1818.3,1818.2,5.724]
[1743642312674,11.76200375,1818.3,1818.2,5.724]
[1743642313061,4.39995,1818.2,1818.1,0.1]
[1743642313259,7.81541643,1818.2,1818.1,0.1]
[1743642313461,9.47315845,1818.2,1818.1,0.1]
[1743642313701,13.55351285,1818.2,1818.1,0.1]
[1743642317492,14.37131285,1818.2,1818.1,0.1]
[1743642318365,4.68595678,1818.3,1818.1,0.1]
[1743642318598,0.28624678,1818.3,1818.1,0.1]
[1743642318777,4.39934,1818.5,1818.1,0.9241]
[1743642318981,4.39961,1818.4,1818.1,0.9241]
[1743642319293,4.39995,1818.2,1818.1,0.1]
[1743642319702,4.39974,1818.3,1818.1,0.1]
[1743642320997,4.39995,1818.2,1818.1,0.1]
[1743642321613,4.39974,1818.3,1818.1,0.1]
[1743642322908,10.0235971,1818.3,1818.1,0.1]
[1743642323114,5.20625,1818.2,1818.1,0.1]
[1743642323274,9.7040115,1818.3,1818.1,0.1]
[1743642323478,4.39974,1818.3,1818.1,0.1]
[1743642323808,7.839471,1818.4,1818.1,0.1]
[1743642323972,4.39945,1818.5,1818.2,0.7575]
[1743642324175,4.39947,1818.4,1818.3,5.726]
[1743642325405,4.39971,1818.3,1818.2,5.726]
[1743642325606,5.579628,1818.3,1818.2,5.726]
[1743642327612,7.39947,1818.4,1818.2,5.726]
[1743642327911,11.79918,1818.4,1818.2,5.726]
[1743642328118,7.39947,1818.4,1818.2,5.726]
[1743642328414,4.39995,1818.2,1818.1,0.1]
[1743642328812,8.4803044,1818.2,1818.1,0.1]
[1743642329016,12.84616584,1818.2,1818.1,0.1]
[1743642330115,8.76581144,1818.2,1818.1,0.1]
[1743642330704,7.39995,1818.2,1818.1,0.1]
[1743642330903,10.69395,1818.2,1818.1,0.1]
[1743642331509,7.39995,1818.2,1818.1,0.42664717]
[1743642331708,7.39995,1818.2,1818.1,0.1]
[1743642332222,7.39995,1818.2,1818.1,0.43500514]
[1743642332513,9.39521144,1818.2,1818.1,0.43500514]
[1743642333223,4.4014,1817.6,1817.5,0.17191504]
[1743642333387,11.4817544,1817.6,1817.5,0.17191504]
[1743642333585,13.04149984,1817.6,1817.5,0.17191504]
[1743642333818,16.33549984,1817.6,1817.5,0.17191504]
[1743642334022,13.04149984,1817.6,1817.5,0.17191504]
[1743642334228,8.96114544,1817.6,1817.2,5.725]
[1743642334429,3.0,1817.6,1817.3,0.7568]
[1743642334631,7.4015,1817.6,1817.3,0.7568]
[1743642334794,4.40176,1817.5,1817.3,0.7568]
[1743642335298,4.40176,1817.5,1817.1,5.99796226]
[1743642335299,4.40237,1817.2,1817.1,5.99796226]
[1743642335627,4.40235,1817.3,1817.1,5.99796226]
[1743642336025,7.4019,1817.4,1817.1,5.99796226]
[1743642336226,8.80355,1817.5,1817.2,0.7793]
[1743642336432,4.40199,1817.4,1817.2,0.7793]
[1743642336648,8.80409,1817.4,1817.2,0.7793]
[1743642337016,4.40213,1817.3,1817.2,0.7793]
[1743642337212,4.40167,1817.5,1817.2,0.7793]
[1743642337547,4.40167,1817.5,1817.2,1.880087]
[1743642337949,4.40167,1817.5,1817.2,1.100787]
[1743642338151,3.0,1817.7,1817.1,5.826]
[1743642338330,8.80416,1817.4,1817.1,5.826]
[1743642338529,4.40218,1817.3,1817.2,0.1719749]
[1743642338945,8.16608,1817.3,1817.2,4.9e-06]
[1743642339252,13.45433044,1817.3,1817.2,4.9e-06]
[1743642339423,7.40237,1817.2,1817.1,0.1]
[1743642339620,11.4827244,1817.2,1817.1,0.38628476]
[1743642339824,14.57311604,1817.2,1817.1,0.38628476]
[1743642340144,15.40051604,1817.2,1817.1,0.26234426]
[1743642340341,16.87051796,1817.2,1817.1,4.26e-06]
[1743642340655,4.40383,1816.6,1816.5,6.69532624]
[1743642340854,4.40383,1816.6,1816.5,6.91902262]
[1743642341765,4.40383,1816.6,1816.5,6.74699638]
[1743642342354,4.40383,1816.6,1816.5,5.94969638]
[1743642342525,8.28458,1816.6,1816.5,0.22369638]
[1743642342941,4.40431,1816.4,1816.3,0.17202624]
[1743642343138,4.40466,1816.3,1816.1,0.8891]
[1743642343346,4.40466,1816.3,1816.2,5.727]
[1743642343546,4.4048,1816.2,1816.1,0.1]
[1743642343836,5.285746,1816.2,1816.1,5.827]
[1743642344431,5.285746,1816.2,1816.1,0.1]
[1743642344854,4.4048,1816.2,1816.1,0.1]
[1743642345170,8.80942,1816.3,1816.1,0.1]
[1743642345333,4.40466,1816.3,1816.2,5.727]
[1743642345528,4.40437,1816.4,1816.2,5.727]
[1743642346374,4.40436,1816.4,1816.2,5.727]
[1743642347433,8.8089,1816.4,1816.2,5.727]
[1743642347873,8.8089,1816.4,1816.3,0.23097905]
[1743642348034,17.07517334,1816.4,1816.3,0.23097905]
[1743642348239,4.4048,1816.2,1816.1,5.827]
[1743642348562,8.80929,1816.3,1816.1,6.05929242]
[1743642348970,4.4048,1816.2,1816.1,6.05929242]
[1743642349469,5.285743,1816.2,1816.1,6.06029242]
[1743642349847,5.285743,1816.2,1816.1,0.33229242]
[1743642350048,5.285743,1816.2,1816.1,5.94509879]
[1743642351138,5.285743,1816.2,1816.1,0.21709879]
[1743642351139,13.20002634,1816.2,1816.1,0.21709879]
[1743642351568,3.0,1816.1,1815.7,0.8063]
[1743642351867,4.40549,1816.0,1815.9,5.728]
[1743642352241,4.40577,1815.8,1815.7,0.8063]
[1743642352436,4.40577,1815.8,1815.7,6.5343]
[1743642352868,4.40557,1815.9,1815.7,6.5343]
[1743642353041,8.81132,1815.9,1815.7,6.5343]
[1743642354660,4.40557,1815.9,1815.7,6.5343]
[1743642354857,8.81132,1815.9,1815.7,6.5343]
[1743642355776,4.40557,1815.9,1815.7,6.5343]